fUSD/lending_fUSD_20251223
["ID","MTS","AMOUNT","RATE_DAILY","PERIOD"]
[399530338,1766449831830,-248.71531821,0.00012069,2]
[399530339,1766449831842,-257.91778498,0.00012069,2]
[399530340,1766449832185,-267.46074303,0.00012069,2]
[399530341,1766449832218,-209.40437684,0.00012069,2]
[399530342,1766449832229,-500.0,0.00012143,2]
[399530343,1766449832239,-250.0,0.00012195,2]
[399530344,1766449832248,-206.95572497,0.00012217,2]
[399530345,1766449832258,-250.0,0.00012217,2]
[399530346,1766449832267,-819.42,0.00012342,2]
[399530347,1766449832277,-1143.0,0.00012437,2]
[399530348,1766449832287,-449.09555582,0.00012453,2]
[399530349,1766449832297,-774.0,0.00012462,2]
[399530350,1766449832306,-208.3,0.0001247,2]
[399530351,1766449832316,-47170.32503527,0.00012517,2]
[399530352,1766449832331,-4563.36026473,0.00012517,2]
[399530353,1766449832342,-1500.0,0.00012553,2]
[399530354,1766449832351,-1645.0,0.00012603,2]
[399530355,1766449832360,-322.6107,0.00012609,2]
[399530356,1766449832369,-151.0,0.00012609,2]
[399530357,1766449832379,-277.35679052,0.00012609,2]
[399530358,1766449832388,-819.42,0.00012616,2]
[399530359,1766449832398,-150.99,0.00012617,2]
[399530360,1766449832407,-405.48,0.00012617,2]
[399530361,1766449832416,-299.99,0.00012617,2]
[399530362,1766449832425,-721.42000929,0.00012617,2]
[399530363,1766449832436,-9278.56999071,0.00012617,2]
[399530364,1766449832446,-346.9,0.00012617,2]
[399530365,1766449832455,-1807.72,0.00012617,2]
[399530366,1766449832464,-21884.56887575,0.00012617,2]
[399530367,1766449832478,-397.84647269,0.00012617,2]
[399530368,1766449832497,-15496.76465156,0.00012617,2]
[399530369,1766449832507,-1543.91,0.00012617,2]
[399530370,1766449832516,-513.45,0.00012617,2]
[399530371,1766449832525,-3678.14,0.00012617,2]
[399530372,1766449832534,-3502.26171055,0.00012617,2]
[399530373,1766449832545,-1017.87290081,0.00012617,2]
[399530374,1766449832560,-5199.99999984,0.00012617,2]
[399530375,1766449832571,-279.8553888,0.00012617,2]
[399530376,1766449832580,-125.71581312,0.00012617,2]
[399530377,1766449832593,-25.27418688,0.00012617,2]
[399530378,1766449832602,-576.39755567,0.00012617,2]
[399530383,1766449837686,-9423.59244433,0.00012617,2]
[399530384,1766449837697,-499.99,0.00012617,2]
[399530385,1766449837707,-9999.99,0.00012617,2]
[399530386,1766449837717,-4999.99,0.00012617,2]
[399530387,1766449837727,-999.99,0.00012617,2]
[399530388,1766449837737,-309.07,0.00012617,2]
[399530389,1766449837747,-5429.95,0.00012617,2]
[399530390,1766449837757,-217.15233878,0.00012617,2]
[399530391,1766449837766,-1325.0,0.00012628,2]
[399530392,1766449837775,-643.4427691,0.00012848,2]
[399530393,1766449837784,-643.4427691,0.00012848,2]
[399530394,1766449837794,-643.4427691,0.00012848,2]
[399530395,1766449837803,-643.4427691,0.00012848,2]
[399530396,1766449837812,-643.4427691,0.00012848,2]
[399530397,1766449837822,-643.4427691,0.00012848,2]
[399530398,1766449837831,-643.4427691,0.00012848,2]
[399530399,1766449837842,-643.4427691,0.00012848,2]
[399530400,1766449837852,-643.4427691,0.00012848,2]
[399530401,1766449837861,-643.4427691,0.00012848,2]
[399530402,1766449837870,-643.4427691,0.00012848,2]
[399530403,1766449837879,-643.4427691,0.00012848,2]
[399530404,1766449837888,-643.4427691,0.00012848,2]
[399530405,1766449837897,-643.4427691,0.00012848,2]
[399530406,1766449837906,-643.4427691,0.00012848,2]
[399530407,1766449837916,-643.4427691,0.00012848,2]
[399530408,1766449837925,-643.4427691,0.00012848,2]
[399530409,1766449837936,-643.4427691,0.00012848,2]
[399530410,1766449837945,-643.4427691,0.00012848,2]
[399530411,1766449837954,-643.4427691,0.00012848,2]
[399530413,1766449837964,-643.4427691,0.00012848,2]
[399530415,1766449837973,-643.4427691,0.00012848,2]
[399530417,1766449837982,-643.4427691,0.00012848,2]
[399530419,1766449837991,-643.4427691,0.00012848,2]
[399530421,1766449838000,-643.4427691,0.00012848,2]
[399530423,1766449838009,-643.4427691,0.00012848,2]
[399530425,1766449838019,-643.4427691,0.00012848,2]
[399530427,1766449838028,-643.4427691,0.00012848,2]
[399530429,1766449838037,-643.4427691,0.00012848,2]
[399530431,1766449838046,-643.4427691,0.00012848,2]
[399530433,1766449838055,-643.4427691,0.00012848,2]
[399530434,1766449838064,-643.4427691,0.00012848,2]
[399530435,1766449838074,-643.4427691,0.00012848,2]
[399530436,1766449838083,-643.4427691,0.00012848,2]
[399530438,1766449838094,-643.4427691,0.00012848,2]
[399530440,1766449838103,-643.4427691,0.00012848,2]
[399530442,1766449838112,-643.4427691,0.00012848,2]
[399530444,1766449838121,-643.4427691,0.00012848,2]
[399530446,1766449838130,-643.4427691,0.00012848,2]
[399530448,1766449838141,-643.4427691,0.00012848,2]
[399530449,1766449838150,-643.4427691,0.00012848,2]
[399530450,1766449838159,-643.4427691,0.00012848,2]
[399530451,1766449838168,-643.4427691,0.00012848,2]
[399530452,1766449838178,-643.4427691,0.00012848,2]
[399530453,1766449838188,-642.04398048,0.00012848,2]
[399530454,1766449838198,-642.04398048,0.00012848,2]
[399530455,1766449838207,-642.04398048,0.00012848,2]
[399530456,1766449838216,-642.04398048,0.00012848,2]
[399530457,1766449838225,-642.04398048,0.00012848,2]
[399530458,1766449838235,-642.04398048,0.00012848,2]
[399530459,1766449838245,-642.04398048,0.00012848,2]
[399530460,1766449838254,-642.04398048,0.00012848,2]
[399530461,1766449838264,-642.04398048,0.00012848,2]
[399530462,1766449838274,-500.0,0.00012848,2]
[399530463,1766449838284,-642.04398048,0.00012848,2]
[399530464,1766449838293,-200.37390587,0.00012848,2]
[399530465,1766449838302,-642.04398048,0.00012848,2]
[399530466,1766449838312,-642.04398048,0.00012848,2]
[399530467,1766449838322,-642.04398048,0.00012848,2]
[399530468,1766449838331,-642.04398048,0.00012848,2]
[399530469,1766449838341,-642.04398048,0.00012848,2]
[399530470,1766449838351,-642.04398048,0.00012848,2]
[399530471,1766449838360,-642.04398048,0.00012848,2]
[399530472,1766449838370,-642.04398048,0.00012848,2]
[399530473,1766449838380,-642.04398048,0.00012848,2]
[399530474,1766449838390,-642.04398048,0.00012848,2]
[399530475,1766449838399,-642.04398048,0.00012848,2]
[399530476,1766449838409,-642.04398048,0.00012848,2]
[399530477,1766449838418,-642.04398048,0.00012848,2]
[399530478,1766449838428,-642.04398048,0.00012848,2]
[399530479,1766449838439,-642.04398048,0.00012848,2]
[399530480,1766449838448,-642.04398048,0.00012848,2]
[399530481,1766449838458,-642.04398048,0.00012848,2]
[399530482,1766449838468,-642.04398048,0.00012848,2]
[399530483,1766449838479,-9616.70069958,0.00012849,2]
[399530484,1766449838489,-13414.36387015,0.00012849,2]
[399530485,1766449838499,-1623.2293,0.0001285,2]
[399530486,1766449838508,-6690.2965,0.0001285,2]
[399530487,1766449838518,-235.9691,0.0001285,2]
[399530488,1766449838528,-2500.0,0.0001285,2]
[399530489,1766449838537,-819.42,0.0001289,2]
[399530490,1766449838547,-282391.79681135,0.00012929,2]
[399530491,1766449838557,-7801.517,0.00012949,2]
[399530492,1766449838567,-526.921,0.00012949,2]
[399530493,1766449838576,-74774.01503361,0.0001295,2]
[399530496,1766449839762,-220.75528452,0.0001295,2]
[399530497,1766449839788,-151.0,0.00012952,2]
[399530498,1766449840121,-151.0,0.00012952,2]
[399530499,1766449840146,-151.0,0.00012952,2]
[399530500,1766449840171,-151.0,0.00012952,2]
[399530501,1766449840196,-200.0,0.00012952,2]
[399530502,1766449840220,-151.0,0.00012952,2]
[399530503,1766449840248,-151.0,0.00012952,2]
[399530504,1766449840273,-151.0,0.00012952,2]
[399530505,1766449840297,-151.0,0.00012952,2]
[399530506,1766449840322,-500.0,0.00012952,2]
[399530507,1766449840351,-250.0,0.00012952,2]
[399530508,1766449840376,-500.0,0.00012952,2]
[399530509,1766449840400,-151.0,0.00012952,2]
[399530510,1766449840425,-721.12765535,0.00012952,2]
[399530511,1766449840450,-500.0,0.00012952,2]
[399530512,1766449840476,-250.0,0.00012952,2]
[399530513,1766449840500,-151.0,0.00012952,2]
[399530514,1766449840526,-500.0,0.00012952,2]
[399530515,1766449840550,-500.0,0.00012952,2]
[399530516,1766449840577,-250.0,0.00012952,2]
[399530517,1766449840602,-500.0,0.00012952,2]
[399530518,1766449840627,-151.0,0.00012952,2]
[399530519,1766449840651,-500.0,0.00012952,2]
[399530520,1766449840681,-250.0,0.00012952,2]
[399530521,1766449840707,-151.0,0.00012952,2]
[399530522,1766449840731,-500.0,0.00012952,2]
[399530523,1766449840757,-500.0,0.00012952,2]
[399530524,1766449840781,-151.0,0.00012952,2]
[399530525,1766449840809,-500.0,0.00012952,2]
[399530526,1766449840837,-157.25506417,0.00012952,2]
[399530527,1766449840861,-250.0,0.00012952,2]
[399530528,1766449840886,-500.0,0.00012952,2]
[399530529,1766449840910,-151.0,0.00012952,2]
[399530530,1766449840934,-500.0,0.00012952,2]
[399530531,1766449840959,-250.0,0.00012952,2]
[399530532,1766449840984,-500.0,0.00012952,2]
[399530533,1766449841009,-151.0,0.00012952,2]
[399530534,1766449841036,-500.0,0.00012952,2]
[399530535,1766449841061,-250.0,0.00012952,2]
[399530536,1766449841086,-500.0,0.00012952,2]
[399530537,1766449841111,-151.0,0.00012952,2]
[399530538,1766449841135,-500.0,0.00012952,2]
[399530539,1766449841159,-250.0,0.00012952,2]
[399530540,1766449841183,-500.0,0.00012952,2]
[399530541,1766449841208,-151.0,0.00012952,2]
[399530542,1766449841232,-500.0,0.00012952,2]
[399530543,1766449841257,-250.0,0.00012952,2]
[399530544,1766449841282,-500.0,0.00012952,2]
[399530545,1766449841307,-265.47634732,0.00012952,2]
[399530546,1766449841331,-500.0,0.00012952,2]
[399530547,1766449841356,-250.0,0.00012952,2]
[399530548,1766449841383,-500.0,0.00012952,2]
[399530549,1766449841410,-500.0,0.00012952,2]
[399530550,1766449841434,-250.0,0.00012952,2]
[399530551,1766449841460,-500.0,0.00012952,2]
[399530552,1766449841485,-200.0,0.00012952,2]
[399530553,1766449841511,-500.0,0.00012952,2]
[399530554,1766449841538,-500.0,0.00012952,2]
[399530555,1766449841563,-200.0,0.00012952,2]
[399530556,1766449841587,-500.0,0.00012952,2]
[399530557,1766449841615,-500.0,0.00012952,2]
[399530558,1766449841640,-500.0,0.00012952,2]
[399530559,1766449841668,-500.0,0.00012952,2]
[399530560,1766449841693,-209.40437684,0.00012952,2]
[399530561,1766449841719,-500.0,0.00012952,2]
[399530562,1766449841743,-500.0,0.00012952,2]
[399530563,1766449841768,-500.0,0.00012952,2]
[399530564,1766449841792,-500.0,0.00012952,2]
[399530565,1766449841818,-500.0,0.00012952,2]
[399530566,1766449841842,-500.0,0.00012952,2]
[399530567,1766449841868,-8.9812718,0.00012952,2]
[399530568,1766449841902,-491.0187282,0.00012952,2]
[399530569,1766449841912,-500.0,0.00012952,2]
[399530570,1766449841921,-500.0,0.00012952,2]
[399530571,1766449841930,-500.0,0.00012952,2]
[399530572,1766449841940,-500.0,0.00012952,2]
[399530573,1766449841949,-160.0,0.00012952,2]
[399530574,1766449841959,-500.0,0.00012952,2]
[399530575,1766449841968,-574.12855637,0.00012952,2]
[399530576,1766449841978,-500.0,0.00012952,2]
[399530577,1766449841987,-500.0,0.00012952,2]
[399530578,1766449841996,-500.0,0.00012952,2]
[399530579,1766449842006,-500.0,0.00012952,2]
[399530580,1766449842015,-500.0,0.00012952,2]
[399530581,1766449842025,-500.0,0.00012952,2]
[399530582,1766449842034,-500.0,0.00012952,2]
[399530583,1766449842043,-500.0,0.00012952,2]
[399530584,1766449842052,-500.0,0.00012952,2]
[399530585,1766449842062,-500.0,0.00012952,2]
[399530586,1766449842072,-500.0,0.00012952,2]
[399530587,1766449842081,-500.0,0.00012952,2]
[399530588,1766449842090,-500.0,0.00012952,2]
[399530589,1766449842101,-500.0,0.00012952,2]
[399530590,1766449842111,-500.0,0.00012952,2]
[399530591,1766449842120,-500.0,0.00012952,2]
[399530592,1766449842130,-500.0,0.00012952,2]
[399530593,1766449842139,-500.0,0.00012952,2]
[399530594,1766449842149,-500.0,0.00012952,2]
[399530595,1766449842158,-500.0,0.00012952,2]
[399530596,1766449842167,-500.0,0.00012952,2]
[399530597,1766449842176,-500.0,0.00012952,2]
[399530598,1766449842186,-322.62141336,0.00012952,2]
[399530599,1766449842196,-500.0,0.00012952,2]
[399530600,1766449842206,-500.0,0.00012952,2]
[399530601,1766449842216,-500.0,0.00012952,2]
[399530602,1766449842226,-500.0,0.00012952,2]
[399530603,1766449842236,-151.0,0.00012952,2]
[399530604,1766449842246,-151.0,0.00012952,2]
[399530605,1766449842255,-151.0,0.00012952,2]
[399530606,1766449842264,-151.0,0.00012952,2]
[399530607,1766449842274,-151.0,0.00012952,2]
[399530608,1766449842284,-151.0,0.00012952,2]
[399530609,1766449842293,-151.0,0.00012952,2]
[399530610,1766449842303,-151.0,0.00012952,2]
[399530611,1766449842312,-250.0,0.00012952,2]
[399530612,1766449842322,-250.0,0.00012952,2]
[399530613,1766449842332,-151.0,0.00012952,2]
[399530614,1766449842341,-250.0,0.00012952,2]
[399530615,1766449842351,-250.0,0.00012952,2]
[399530616,1766449842360,-250.0,0.00012952,2]
[399530617,1766449842370,-250.0,0.00012952,2]
[399530618,1766449842379,-151.0,0.00012952,2]
[399530619,1766449842390,-250.0,0.00012952,2]
[399530620,1766449842399,-250.0,0.00012952,2]
[399530621,1766449842409,-151.0,0.00012952,2]
[399530622,1766449842419,-250.0,0.00012952,2]
[399530623,1766449842429,-250.0,0.00012952,2]
[399530624,1766449842438,-250.0,0.00012952,2]
[399530625,1766449842448,-250.0,0.00012952,2]
[399530626,1766449842458,-250.0,0.00012952,2]
[399530627,1766449842467,-250.0,0.00012952,2]
[399530629,1766449842486,-250.0,0.00012952,2]
[399530631,1766449842499,-250.0,0.00012952,2]
[399530634,1766449842509,-250.0,0.00012952,2]
[399530637,1766449842519,-250.0,0.00012952,2]
[399530639,1766449842530,-295.47694898,0.00012952,2]
[399530641,1766449842540,-250.0,0.00012952,2]
[399530643,1766449842550,-250.0,0.00012952,2]
[399530644,1766449842560,-250.0,0.00012952,2]
[399530645,1766449842570,-151.0,0.00012952,2]
[399530646,1766449842580,-150.0,0.00012959,2]
[399530647,1766449842590,-166.79630578,0.00012959,2]
[399530648,1766449842601,-174.14535602,0.00012959,2]
[399530649,1766449842611,-187304.47562576,0.0001296,2]
[399530650,1766449842625,-285.8100065,0.0001296,2]
[399530651,1766449842637,-8670.96954221,0.0001296,2]
[399530652,1766449842650,-8947.21879473,0.0001296,2]
[399530653,1766449842663,-8943.78386462,0.0001296,2]
[399530654,1766449842678,-9077.54866152,0.0001296,2]
[399530655,1766449842691,-8943.84023489,0.0001296,2]
[399530656,1766449842748,-25000.0,0.0001296,2]
[399530657,1766449842818,-25000.0,0.0001296,2]
[399530658,1766449842857,-25000.0,0.0001296,2]
[399530659,1766449842948,-25000.0,0.0001296,2]
[399530660,1766449842964,-1602.30727724,0.0001296,2]
[399530661,1766449842976,-39068.28119872,0.0001296,2]
[399530662,1766449842987,-716.00576166,0.0001296,2]
[399530666,1766449844289,-56083.92386084,0.0001296,2]
[399530667,1766449844303,-3700.92515172,0.0001296,2]
[399530668,1766449844314,-527.50353436,0.0001296,2]
[399530669,1766449844349,-25000.0,0.0001296,2]
[399530670,1766449844423,-25000.0,0.0001296,2]
[399530671,1766449844559,-25000.0,0.0001296,2]
[399530672,1766449844726,-25000.0,0.0001296,2]
[399530683,1766449846186,-25000.0,0.0001296,2]
[399530684,1766449846210,-938.43794,0.0001296,2]
[399530685,1766449846221,-1611.51,0.0001296,2]
[399530686,1766449846240,-965.69637655,0.0001296,2]
[399530687,1766449846252,-265.59999999,0.0001296,2]
[399530688,1766449846263,-639.22380711,0.0001296,2]
[399530689,1766449850113,-25000.0,0.0001296,2]
[399530690,1766449851208,-25000.0,0.0001296,2]
[399530691,1766449852297,-25000.0,0.0001296,2]
[399530692,1766449853649,-25000.0,0.0001296,2]
[399530693,1766449855072,-25000.0,0.0001296,2]
[399530694,1766449881233,-4099.9759,0.00012517,2]
[399530695,1766449881258,-369.84458312,0.00012848,2]
[399530696,1766449881287,-500.0,0.00012848,2]
[399530697,1766449881317,-500.0,0.00012848,2]
[399530698,1766449881346,-500.0,0.00012848,2]
[399530699,1766449881375,-500.0,0.00012848,2]
[399530700,1766449881403,-500.0,0.00012848,2]
[399530701,1766449881432,-500.0,0.00012848,2]
[399530702,1766449881462,-500.0,0.00012848,2]
[399530703,1766449881490,-500.0,0.00012848,2]
[399530704,1766449881518,-500.0,0.00012848,2]
[399530705,1766449881547,-500.0,0.00012848,2]
[399530706,1766449881575,-500.0,0.00012848,2]
[399530707,1766449881604,-500.0,0.00012848,2]
[399530708,1766449881930,-500.0,0.00012848,2]
[399530709,1766449881959,-500.0,0.00012848,2]
[399530710,1766449881987,-500.0,0.00012848,2]
[399530711,1766449882017,-500.0,0.00012848,2]
[399530712,1766449882046,-500.0,0.00012848,2]
[399530713,1766449882075,-500.0,0.00012848,2]
[399530714,1766449882100,-630.47466256,0.0001286,2]
[399530715,1766449882125,-329.36142539,0.0001291,2]
[399530716,1766449882151,-500.0,0.00012959,2]
[399530717,1766449882176,-267.75596998,0.00012959,2]
[399530718,1766449882208,-9802.58745895,0.0001296,2]
[399530719,1766449884143,-25000.0,0.0001296,2]
[399530720,1766449894778,-2500.0,0.0001285,2]
[399530721,1766449894807,-37500.0,0.0001296,2]
[399530722,1766449923037,-25000.0,0.0001296,2]
[399530723,1766449923311,5525.0,0.000105,5]
[399530724,1766449923535,5525.0,0.000103,3]
[399530725,1766449923873,16745.0,0.0001,2]
[399530726,1766449924280,-25000.0,0.0001296,2]
[399530727,1766449925241,-200.0,0.00012605,2]
[399530728,1766449925270,-207.4,0.00012605,2]
[399530729,1766449925301,-24592.6,0.0001296,2]
[399530730,1766449926603,-215.0738,0.00012605,2]
[399530731,1766449926629,-223.0315306,0.00012605,2]
[399530732,1766449926654,-322.6107,0.00012952,2]
[399530733,1766449926686,-24239.2839694,0.0001296,2]
[399530734,1766449930819,-231.28369723,0.00012605,2]
[399530735,1766449930846,-239.84119403,0.00012605,2]
[399530736,1766449930872,-248.71531821,0.00012605,2]
[399530737,1766449930898,-257.91778498,0.00012605,2]
[399530738,1766449930933,-267.46074303,0.00012605,2]
[399530739,1766449930961,-250.0,0.00012952,2]
[399530740,1766449930987,-721.12765535,0.00012952,2]
[399530741,1766449931015,-175.56761214,0.00012952,2]
[399530742,1766449931040,-151.0,0.00012952,2]
[399530743,1766449931074,-19457.08599503,0.0001296,2]
[399530744,1766449945389,311.0,0.00014,3]
[399530746,1766449954611,5525.0,0.000105,5]
[399530747,1766449954850,5247.0,0.000103,3]
[399530750,1766450050349,163.74,6.387e-05,2]
[399530751,1766450050396,163.74,7.186e-05,2]
[399530752,1766450050464,163.74,7.984e-05,2]
[399530753,1766450050682,163.74,8.783e-05,2]
[399530754,1766450050899,163.74,9.581e-05,2]
[399530755,1766450203609,183.38186706,0.00012851,3]
[399530758,1766450496671,1194.78694617,0.00012851,3]
[399530769,1766451031749,-163.74,0.0001038,2]
[399530770,1766451031759,-235.0,0.0001038,2]
[399530771,1766451031768,-66.28084125,0.00011178,2]
[399530772,1766451031779,-97.45915875,0.00011178,2]
[399530773,1766451031788,-167.14084097,0.00011409,2]
[399530774,1766451031803,-672.2535878,0.00011409,2]
[399530775,1766451031821,-195.0,0.00011418,2]
[399530776,1766451031832,-300.0,0.00011418,2]
[399530777,1766451031842,-200.0,0.00011649,2]
[399530778,1766451031851,-150.0,0.00011925,2]
[399530779,1766451031862,-1221.4988,0.00011964,2]
[399530780,1766451031871,-163.74,0.00011977,2]
[399530781,1766451031881,-786.82968447,0.00012064,2]
[399530782,1766451031895,-213.17031553,0.00012064,2]
[399530783,1766451031904,-1200.0,0.00012097,2]
[399530784,1766451031914,-171.93467214,0.00012098,2]
[399530785,1766451031925,-1680.48532786,0.00012098,2]
[399530786,1766451031935,-1200.0,0.00012308,2]
[399530787,1766451031945,-300.0,0.00012308,2]
[399530788,1766451031955,-300.0,0.00012308,2]
[399530789,1766451031965,-1600.0,0.00012309,2]
[399530790,1766451031974,-1623.2293,0.00012351,2]
[399530791,1766451031983,-166.66,0.00012365,2]
[399530792,1766451031993,-7173.93,0.00012365,2]
[399530793,1766451032002,-449.0758423,0.00012414,2]
[399530794,1766451032011,-150.0,0.0001245,2]
[399530795,1766451032021,-43080.56498343,0.00012451,2]
[399530798,1766451032036,-23614.56501657,0.00012451,2]
[399530800,1766451032045,-6129.97,0.00012451,2]
[399530802,1766451032055,-150.99,0.00012451,2]
[399530804,1766451032064,-3827.73,0.00012451,2]
[399530806,1766451032073,-5689.35,0.00012451,2]
[399530808,1766451032082,-150.99,0.00012451,2]
[399530809,1766451032091,-8966.99140614,0.00012451,2]
[399530812,1766451032102,-1032.99859386,0.00012451,2]
[399530815,1766451032112,-9999.99,0.00012451,2]
[399530817,1766451032121,-299.99,0.00012451,2]
[399530818,1766451032130,-9999.99,0.00012451,2]
[399530820,1766451032139,-9999.99,0.00012451,2]
[399530822,1766451032149,-491.0,0.00012473,2]
[399530824,1766451032158,-167.0,0.000126,2]
[399530825,1766451032167,-167.0,0.000126,2]
[399530826,1766451032179,-209.40437684,0.0001266,2]
[399530827,1766451032188,-578.20924308,0.0001266,2]
[399530828,1766451032197,-151.0,0.0001266,2]
[399530829,1766451032206,-322.6107,0.0001266,2]
[399530830,1766451032216,-2500.0,0.00012745,2]
[399530831,1766451032226,-526.921,0.00012752,2]
[399530832,1766451032235,-5280.44646256,0.00012752,2]
[399530833,1766451032256,-1206.58649971,0.00012752,2]
[399530834,1766451032268,-1314.48403773,0.00012752,2]
[399530835,1766451032278,-576.45817314,0.00012752,2]
[399530836,1766451032288,-500.0,0.00012752,2]
[399530837,1766451032298,-500.0,0.00012752,2]
[399530838,1766451032308,-111.46337877,0.00012752,2]
[399530839,1766451032323,-388.53662123,0.00012752,2]
[399530840,1766451032333,-318.37323028,0.00012752,2]
[399530841,1766451032343,-21.42801955,0.00012752,2]
[399530842,1766451032354,-304.24350998,0.00012752,2]
[399530843,1766451032365,-174.32847047,0.00012752,2]
[399530844,1766451032375,-198.97125691,0.00012752,2]
[399530847,1766451037795,-200.37390587,0.00012751,2]
[399530848,1766451037804,-500.0,0.00012751,2]
[399530849,1766451037814,-500.0,0.00012751,2]
[399530850,1766451037824,-500.0,0.00012751,2]
[399530851,1766451037833,-500.0,0.00012751,2]
[399530852,1766451037842,-500.0,0.00012751,2]
[399530853,1766451037852,-500.0,0.00012751,2]
[399530854,1766451037861,-500.0,0.00012751,2]
[399530855,1766451037870,-500.0,0.00012751,2]
[399530856,1766451037880,-500.0,0.00012751,2]
[399530857,1766451037889,-500.0,0.00012751,2]
[399530858,1766451037899,-197.85878483,0.00012751,2]
[399530859,1766451037908,-500.0,0.00012751,2]
[399530860,1766451037917,-500.0,0.00012751,2]
[399530861,1766451037927,-185.0757232,0.00012751,2]
[399530862,1766451037936,-192.01688168,0.00012751,2]
[399530863,1766451037945,-500.0,0.00012751,2]
[399530864,1766451037954,-500.0,0.00012751,2]
[399530865,1766451037963,-500.0,0.00012751,2]
[399530866,1766451037972,-500.0,0.00012751,2]
[399530867,1766451037981,-500.0,0.00012751,2]
[399530868,1766451037990,-500.0,0.00012751,2]
[399530869,1766451037999,-500.0,0.00012751,2]
[399530870,1766451038008,-500.0,0.00012751,2]
[399530871,1766451038018,-500.0,0.00012751,2]
[399530872,1766451038027,-500.0,0.00012751,2]
[399530873,1766451038038,-500.0,0.00012751,2]
[399530874,1766451038047,-500.0,0.00012751,2]
[399530875,1766451038056,-500.0,0.00012751,2]
[399530876,1766451038066,-500.0,0.00012751,2]
[399530877,1766451038075,-500.0,0.00012751,2]
[399530878,1766451038085,-500.0,0.00012751,2]
[399530879,1766451038094,-500.0,0.00012751,2]
[399530880,1766451038104,-500.0,0.00012751,2]
[399530881,1766451038115,-500.0,0.00012751,2]
[399530883,1766451038125,-500.0,0.00012751,2]
[399530884,1766451038134,-500.0,0.00012751,2]
[399530885,1766451038144,-500.0,0.00012751,2]
[399530886,1766451038153,-500.0,0.00012751,2]
[399530887,1766451038163,-500.0,0.00012751,2]
[399530888,1766451038172,-159.53487594,0.00012751,2]
[399530889,1766451038186,-500.0,0.00012751,2]
[399530890,1766451038196,-670.44,0.00012752,2]
[399530891,1766451038205,-1000.0,0.00012752,2]
[399530892,1766451038215,-2857.1494,0.00012752,2]
[399530893,1766451038226,-13513.3123,0.00012752,2]
[399530894,1766451038235,-6690.2965,0.00012752,2]
[399530895,1766451038244,-235.9691,0.00012752,2]
[399530896,1766451038256,-16675.44335665,0.00012753,2]
[399530897,1766451038265,-166.66,0.00012773,2]
[399530898,1766451038275,-163.74,0.00012775,2]
[399530899,1766451038284,-500.0,0.00012775,2]
[399530900,1766451038294,-154.09243824,0.000128,2]
[399530901,1766451038303,-154.09243823,0.0001283,2]
[399530902,1766451038313,-151.0,0.00012841,2]
[399530903,1766451038323,-500.0,0.00012844,2]
[399530904,1766451038333,-721.12765535,0.00012844,2]
[399530905,1766451038342,-151.0,0.00012844,2]
[399530906,1766451038352,-500.0,0.00012844,2]
[399530907,1766451038361,-500.0,0.00012844,2]
[399530908,1766451038371,-249.3014919,0.00012844,2]
[399530909,1766451038381,-500.0,0.00012844,2]
[399530910,1766451038390,-500.0,0.00012844,2]
[399530911,1766451038400,-500.0,0.00012844,2]
[399530912,1766451038409,-500.0,0.00012844,2]
[399530913,1766451038419,-500.0,0.00012844,2]
[399530914,1766451038428,-500.0,0.00012844,2]
[399530915,1766451038437,-500.0,0.00012844,2]